[Event "January 9 Early 2024"]
[Site "https://www.chess.com"]
[Date "2024.01.11"]
[Round "7"]
[White "Papasimakopoulos, Alexandros"]
[Black "Molina, Roberto Junio Brito"]
[Result "0-1"]
[Board "258"]
[TimeControl "180+1"]
[WhiteFideId "4244125"]
[BlackFideId "2109450"]
[WhiteElo "2651"]
[BlackElo "2806"]
[WhiteTeam "GRE"]
[BlackTeam "BRA"]
[WhiteClock "0:00:15"]
[BlackClock "0:00:09"]

1. d4 {[%clk 0:03:00]}  d5 {[%clk 0:02:59]} 2. c4 {[%clk 0:03:00]}  c6 {[%clk 0:02:59]} 3. cxd5 {[%clk 0:03:00]}  cxd5 {[%clk 0:02:59]} 4. Bf4 {[%clk 0:03:01]}  Qb6 {[%clk 0:02:58]} 5. Qd2 {[%clk 0:02:58]}  Nc6 {[%clk 0:02:58]} 6. e3 {[%clk 0:02:58]}  Nf6 {[%clk 0:02:58]} 7. Nc3 {[%clk 0:02:59]}  e6 {[%clk 0:02:57]} 8. Bd3 {[%clk 0:02:58]}  Bd7 {[%clk 0:02:56]} 9. Nge2 {[%clk 0:02:51]}  Be7 {[%clk 0:02:54]} 10. h3 {[%clk 0:02:51]}  O-O {[%clk 0:02:54]} 11. O-O {[%clk 0:02:51]}  Rfc8 {[%clk 0:02:54]} 12. Rfc1 {[%clk 0:02:50]}  Qd8 {[%clk 0:02:54]} 13. Nb5 {[%clk 0:02:46]}  Be8 {[%clk 0:02:52]} 14. Bh2 {[%clk 0:02:43]}  a6 {[%clk 0:02:52]} 15. Nbc3 {[%clk 0:02:43]}  b5 {[%clk 0:02:51]} 16. Nf4 {[%clk 0:02:38]}  Bd6 {[%clk 0:02:47]} 17. Be2 {[%clk 0:02:36]}  Na5 {[%clk 0:02:45]} 18. b3 {[%clk 0:02:36]}  Ba3 {[%clk 0:02:39]} 19. Rc2 {[%clk 0:02:35]}  Nc6 {[%clk 0:02:37]} 20. Nd3 {[%clk 0:02:31]}  Qa5 {[%clk 0:02:25]} 21. Nb1 {[%clk 0:02:15]}  Qxd2 {[%clk 0:02:09]} 22. Rxd2 {[%clk 0:02:11]}  Be7 {[%clk 0:01:55]} 23. Rc2 {[%clk 0:02:05]}  Nxd4 {[%clk 0:01:51]} 24. Rxc8 {[%clk 0:02:05]}  Nxe2+ {[%clk 0:01:51]} 25. Kf1 {[%clk 0:02:06]}  Rxc8 {[%clk 0:01:51]} 26. Kxe2 {[%clk 0:02:07]}  Ne4 {[%clk 0:01:44]} 27. Kd1 {[%clk 0:01:51]}  b4 {[%clk 0:01:41]} 28. a4 {[%clk 0:01:49]}  bxa3 {[%clk 0:00:53]} 29. Nxa3 {[%clk 0:01:40]}  Bxa3 {[%clk 0:00:47]} 30. Rxa3 {[%clk 0:01:39]}  Bb5 {[%clk 0:00:48]} 31. f3 {[%clk 0:01:35]}  Bxd3 {[%clk 0:00:23]} 32. fxe4 {[%clk 0:01:35]}  dxe4 {[%clk 0:00:19]} 33. h4 {[%clk 0:01:32]}  h5 {[%clk 0:00:18]} 34. Bf4 {[%clk 0:01:27]}  Kh7 {[%clk 0:00:18]} 35. Ra5 {[%clk 0:01:26]}  Bb5 {[%clk 0:00:18]} 36. Ra1 {[%clk 0:01:20]}  Kg6 {[%clk 0:00:17]} 37. Rc1 {[%clk 0:01:19]}  Rd8+ {[%clk 0:00:16]} 38. Ke1 {[%clk 0:01:19]}  Rd3 {[%clk 0:00:17]} 39. b4 {[%clk 0:01:19]}  f6 {[%clk 0:00:16]} 40. Rd1 {[%clk 0:01:10]}  Rb3 {[%clk 0:00:13]} 41. Bd6 {[%clk 0:01:09]}  Rxe3+ {[%clk 0:00:12]} 42. Kf2 {[%clk 0:01:10]}  Re2+ {[%clk 0:00:10]} 43. Kg3 {[%clk 0:01:09]}  Rc2 {[%clk 0:00:11]} 44. Bc5 {[%clk 0:01:08]}  e5 {[%clk 0:00:10]} 45. Rd8 {[%clk 0:01:06]}  Kf5 {[%clk 0:00:10]} 46. Rg8 {[%clk 0:01:05]}  g6 {[%clk 0:00:09]} 47. Rf8 {[%clk 0:01:05]}  e3 {[%clk 0:00:05]} 48. Bxe3 {[%clk 0:01:03]}  Bc6 {[%clk 0:00:05]} 49. Bg5 {[%clk 0:01:02]}  Rxg2+ {[%clk 0:00:05]} 50. Kh3 {[%clk 0:01:02]}  Rxg5 {[%clk 0:00:05]} 51. hxg5 {[%clk 0:01:03]}  Kxg5 {[%clk 0:00:06]} 52. Rc8 {[%clk 0:00:59]}  Bb5 {[%clk 0:00:06]} 53. Rc5 {[%clk 0:00:59]}  Kf4 {[%clk 0:00:06]} 54. Kg2 {[%clk 0:00:59]}  g5 {[%clk 0:00:06]} 55. Rc2 {[%clk 0:00:58]}  g4 {[%clk 0:00:06]} 56. Rf2+ {[%clk 0:00:58]}  Kg5 {[%clk 0:00:06]} 57. Rd2 {[%clk 0:00:58]}  f5 {[%clk 0:00:06]} 58. Rd8 {[%clk 0:00:58]}  h4 {[%clk 0:00:06]} 59. Rg8+ {[%clk 0:00:58]}  Kf4 {[%clk 0:00:07]} 60. Rh8 {[%clk 0:00:58]}  Bc6+ {[%clk 0:00:07]} 61. Kh2 {[%clk 0:00:57]}  g3+ {[%clk 0:00:07]} 62. Kh3 {[%clk 0:00:56]}  Kf3 {[%clk 0:00:07]} 63. Rd8 {[%clk 0:00:45]}  g2 {[%clk 0:00:06]} 64. Kh2 {[%clk 0:00:45]}  Kf2 {[%clk 0:00:06]} 65. Rd2+ {[%clk 0:00:45]}  Ke3 {[%clk 0:00:06]} 66. Rc2 {[%clk 0:00:44]}  Be4 {[%clk 0:00:05]} 67. Ra2 {[%clk 0:00:42]}  f4 {[%clk 0:00:05]} 68. Ra3+ {[%clk 0:00:41]}  Kf2 {[%clk 0:00:05]} 69. Ra2+ {[%clk 0:00:41]}  Kf1 {[%clk 0:00:06]} 70. Ra1+ {[%clk 0:00:41]}  Ke2 {[%clk 0:00:06]} 71. Ra2+ {[%clk 0:00:40]}  Ke3 {[%clk 0:00:07]} 72. Ra3+ {[%clk 0:00:40]}  Bd3 {[%clk 0:00:04]} 73. Kxg2 {[%clk 0:00:40]}  e4 {[%clk 0:00:05]} 74. Ra2 {[%clk 0:00:36]}  f3+ {[%clk 0:00:06]} 75. Kg1 {[%clk 0:00:36]}  h3 {[%clk 0:00:06]} 76. Rh2 {[%clk 0:00:36]}  Kd4 {[%clk 0:00:06]} 77. Rxh3 {[%clk 0:00:36]}  Kc3 {[%clk 0:00:06]} 78. Kf2 {[%clk 0:00:33]}  Kxb4 {[%clk 0:00:07]} 79. Ke3 {[%clk 0:00:33]}  a5 {[%clk 0:00:07]} 80. Rh8 {[%clk 0:00:27]}  a4 {[%clk 0:00:08]} 81. Rb8+ {[%clk 0:00:28]}  Kc3 {[%clk 0:00:08]} 82. Ra8 {[%clk 0:00:26]}  Kb3 {[%clk 0:00:08]} 83. Rb8+ {[%clk 0:00:26]}  Ka2 {[%clk 0:00:08]} 84. Rf8 {[%clk 0:00:24]}  a3 {[%clk 0:00:09]} 85. Kd2 {[%clk 0:00:24]}  Kb3 {[%clk 0:00:09]} 86. Rb8+ {[%clk 0:00:24]}  Ka4 {[%clk 0:00:09]} 87. Rf8 {[%clk 0:00:22]}  a2 {[%clk 0:00:09]} 88. Ra8+ {[%clk 0:00:17]}  Kb3 {[%clk 0:00:09]} 89. Rb8+ {[%clk 0:00:17]}  Kc4 {[%clk 0:00:09]} 90. Rc8+ {[%clk 0:00:15]}  Kd5 {[%clk 0:00:10]} 91. Rd8+ {[%clk 0:00:15]}  Ke6 {[%clk 0:00:10]} 92. Ra8 {[%clk 0:00:16]}  f2 {[%clk 0:00:10]} 93. Ra6+ {[%clk 0:00:15]}  Bxa6 {[%clk 0:00:09]} 0-1

[Event "January 9 Early 2024"]
[Site "https://www.chess.com"]
[Date "2024.01.11"]
[Round "7"]
[White "Zemlyanskii, Ivan"]
[Black "Hayrapetyan, Hovik"]
[Result "1/2-1/2"]
[Board "259"]
[TimeControl "180+1"]
[WhiteFideId "24249971"]
[BlackFideId "13302639"]
[WhiteElo "2986"]
[BlackElo "2814"]
[WhiteTeam "RUS"]
[BlackTeam "ARM"]
[WhiteClock "0:00:02"]
[BlackClock "0:00:04"]

1. d4 {[%clk 0:03:00]}  Nf6 {[%clk 0:02:59]} 2. c4 {[%clk 0:03:01]}  e6 {[%clk 0:03:00]} 3. Bf4 {[%clk 0:03:01]}  b6 {[%clk 0:02:57]} 4. Nc3 {[%clk 0:03:01]}  Bb7 {[%clk 0:02:58]} 5. e3 {[%clk 0:03:01]}  Bb4 {[%clk 0:02:53]} 6. Ne2 {[%clk 0:03:01]}  O-O {[%clk 0:02:48]} 7. a3 {[%clk 0:03:01]}  Be7 {[%clk 0:02:32]} 8. d5 {[%clk 0:03:01]}  d6 {[%clk 0:02:24]} 9. e4 {[%clk 0:03:01]}  e5 {[%clk 0:02:24]} 10. Bd2 {[%clk 0:03:01]}  a5 {[%clk 0:02:22]} 11. Ng3 {[%clk 0:02:58]}  Na6 {[%clk 0:02:17]} 12. Bd3 {[%clk 0:02:54]}  Nc5 {[%clk 0:02:16]} 13. Bc2 {[%clk 0:02:54]}  Ba6 {[%clk 0:02:12]} 14. b3 {[%clk 0:02:45]}  Ne8 {[%clk 0:01:35]} 15. O-O {[%clk 0:02:41]}  Bg5 {[%clk 0:01:33]} 16. Nge2 {[%clk 0:02:28]}  Bxd2 {[%clk 0:01:29]} 17. Qxd2 {[%clk 0:02:29]}  g6 {[%clk 0:01:23]} 18. b4 {[%clk 0:02:28]}  axb4 {[%clk 0:01:09]} 19. axb4 {[%clk 0:02:29]}  Nd7 {[%clk 0:01:09]} 20. Bd3 {[%clk 0:02:24]}  Ng7 {[%clk 0:01:04]} 21. Ra3 {[%clk 0:02:22]}  Bb7 {[%clk 0:00:55]} 22. Rfa1 {[%clk 0:02:22]}  Rxa3 {[%clk 0:00:55]} 23. Rxa3 {[%clk 0:02:23]}  f5 {[%clk 0:00:55]} 24. Ra7 {[%clk 0:02:00]}  Qb8 {[%clk 0:00:51]} 25. Qa2 {[%clk 0:02:00]}  f4 {[%clk 0:00:20]} 26. f3 {[%clk 0:02:00]}  g5 {[%clk 0:00:20]} 27. h3 {[%clk 0:01:56]}  h5 {[%clk 0:00:20]} 28. Nb5 {[%clk 0:01:57]}  Kh7 {[%clk 0:00:15]} 29. Nec3 {[%clk 0:01:54]}  Kg6 {[%clk 0:00:12]} 30. Be2 {[%clk 0:01:53]}  Ne8 {[%clk 0:00:11]} 31. Qa4 {[%clk 0:01:47]}  Nef6 {[%clk 0:00:11]} 32. Kf2 {[%clk 0:01:37]}  g4 {[%clk 0:00:11]} 33. hxg4 {[%clk 0:01:33]}  hxg4 {[%clk 0:00:12]} 34. fxg4 {[%clk 0:01:33]}  Rh8 {[%clk 0:00:12]} 35. Qa1 {[%clk 0:01:26]}  Kg5 {[%clk 0:00:12]} 36. Bf3 {[%clk 0:01:23]}  Rh2 {[%clk 0:00:10]} 37. Qg1 {[%clk 0:01:16]}  Rh7 {[%clk 0:00:09]} 38. Qc1 {[%clk 0:01:06]}  Nxg4+ {[%clk 0:00:03]} 39. Bxg4 {[%clk 0:01:03]}  Kxg4 {[%clk 0:00:04]} 40. Ne2 {[%clk 0:00:37]}  Nf6 {[%clk 0:00:04]} 41. Qc2 {[%clk 0:00:32]}  Kg5 {[%clk 0:00:04]} 42. Qd3 {[%clk 0:00:20]}  Ng4+ {[%clk 0:00:04]} 43. Ke1 {[%clk 0:00:20]}  Rh1+ {[%clk 0:00:04]} 44. Kd2 {[%clk 0:00:18]}  Rd1+ {[%clk 0:00:03]} 45. Kxd1 {[%clk 0:00:16]}  Nf2+ {[%clk 0:00:04]} 46. Kc2 {[%clk 0:00:17]}  Nxd3 {[%clk 0:00:05]} 47. Kxd3 {[%clk 0:00:18]}  c6 {[%clk 0:00:05]} 48. dxc6 {[%clk 0:00:15]}  Bxc6 {[%clk 0:00:05]} 49. Nec3 {[%clk 0:00:15]}  Bxb5 {[%clk 0:00:05]} 50. Nxb5 {[%clk 0:00:16]}  Kf6 {[%clk 0:00:05]} 51. Rd7 {[%clk 0:00:16]}  Qg8 {[%clk 0:00:05]} 52. Rxd6+ {[%clk 0:00:16]}  Ke7 {[%clk 0:00:06]} 53. Rxb6 {[%clk 0:00:14]}  Qg3+ {[%clk 0:00:06]} 54. Kc2 {[%clk 0:00:14]}  Qxg2+ {[%clk 0:00:06]} 55. Kb3 {[%clk 0:00:15]}  f3 {[%clk 0:00:07]} 56. Rb7+ {[%clk 0:00:13]}  Kf8 {[%clk 0:00:06]} 57. Nd6 {[%clk 0:00:11]}  f2 {[%clk 0:00:06]} 58. Rf7+ {[%clk 0:00:09]}  Kg8 {[%clk 0:00:07]} 59. c5 {[%clk 0:00:10]}  f1=Q {[%clk 0:00:06]} 60. Rxf1 {[%clk 0:00:11]}  Qxf1 {[%clk 0:00:06]} 61. b5 {[%clk 0:00:12]}  Kf8 {[%clk 0:00:06]} 62. Kb4 {[%clk 0:00:11]}  Ke7 {[%clk 0:00:06]} 63. Ka5 {[%clk 0:00:11]}  Kd7 {[%clk 0:00:06]} 64. Kb6 {[%clk 0:00:12]}  Qb1 {[%clk 0:00:05]} 65. Nc4 {[%clk 0:00:08]}  Qxe4 {[%clk 0:00:05]} 66. c6+ {[%clk 0:00:09]}  Ke7 {[%clk 0:00:03]} 67. Na5 {[%clk 0:00:08]}  Qd4+ {[%clk 0:00:03]} 68. Ka6 {[%clk 0:00:07]}  Qc5 {[%clk 0:00:02]} 69. Nb7 {[%clk 0:00:08]}  Qa3+ {[%clk 0:00:03]} 70. Kb6 {[%clk 0:00:08]}  Qe3+ {[%clk 0:00:02]} 71. Kc7 {[%clk 0:00:05]}  e4 {[%clk 0:00:01]} 72. b6 {[%clk 0:00:04]}  Qf4+ {[%clk 0:00:02]} 73. Kc8 {[%clk 0:00:04]}  e3 {[%clk 0:00:02]} 74. c7 {[%clk 0:00:02]}  e2 {[%clk 0:00:02]} 75. Nc5 {[%clk 0:00:02]}  e1=Q {[%clk 0:00:03]} 76. Kb7 {[%clk 0:00:02]}  Qee5 {[%clk 0:00:02]} 77. Na6 {[%clk 0:00:01]}  Qd5+ {[%clk 0:00:02]} 78. Ka7 {[%clk 0:00:01]}  Qfd6 {[%clk 0:00:03]} 79. c8=Q {[%clk 0:00:01]}  Qd7+ {[%clk 0:00:03]} 80. Qxd7+ {[%clk 0:00:01]}  Qxd7+ {[%clk 0:00:04]} 81. b7 {[%clk 0:00:02]}  Kd6 {[%clk 0:00:05]} 82. Kb6 {[%clk 0:00:02]}  Qc6+ {[%clk 0:00:06]} 83. Ka7 {[%clk 0:00:02]}  Qd7 {[%clk 0:00:05]} 84. Ka8 {[%clk 0:00:02]}  Qc6 {[%clk 0:00:04]} 85. Ka7 {[%clk 0:00:02]}  Qd7 {[%clk 0:00:04]} 1/2-1/2

[Event "January 9 Early 2024"]
[Site "https://www.chess.com"]
[Date "2024.01.11"]
[Round "7"]
[White "Samarth J Rao"]
[Black "Carrillo Marval, Maria Angelica"]
[Result "0-1"]
[Board "261"]
[TimeControl "180+1"]
[WhiteFideId "46652370"]
[BlackFideId "3911853"]
[WhiteElo "1895"]
[BlackElo "2096"]
[WhiteTeam "IND"]
[BlackTeam "PAN"]
[WhiteClock "0:00:09"]
[BlackClock "0:00:09"]

1. e4 {[%clk 0:02:56]}  c5 {[%clk 0:02:59]} 2. Nc3 {[%clk 0:02:54]}  Nc6 {[%clk 0:02:59]} 3. g3 {[%clk 0:02:54]}  Nf6 {[%clk 0:02:59]} 4. Bg2 {[%clk 0:02:52]}  d6 {[%clk 0:02:59]} 5. Nge2 {[%clk 0:02:49]}  g6 {[%clk 0:02:59]} 6. O-O {[%clk 0:02:42]}  Bg7 {[%clk 0:02:58]} 7. d3 {[%clk 0:02:40]}  O-O {[%clk 0:02:58]} 8. h3 {[%clk 0:02:38]}  a6 {[%clk 0:02:57]} 9. Kh2 {[%clk 0:02:36]}  Bd7 {[%clk 0:02:57]} 10. g4 {[%clk 0:02:30]}  b5 {[%clk 0:02:55]} 11. Ng3 {[%clk 0:02:29]}  b4 {[%clk 0:02:53]} 12. Nce2 {[%clk 0:02:27]}  Rc8 {[%clk 0:02:52]} 13. f4 {[%clk 0:02:26]}  a5 {[%clk 0:02:51]} 14. f5 {[%clk 0:02:24]}  e6 {[%clk 0:02:51]} 15. g5 {[%clk 0:02:17]}  Ne8 {[%clk 0:02:44]} 16. f6 {[%clk 0:02:17]}  Nxf6 {[%clk 0:02:42]} 17. gxf6 {[%clk 0:02:16]}  Bxf6 {[%clk 0:02:40]} 18. Nf4 {[%clk 0:02:06]}  Ne5 {[%clk 0:02:30]} 19. c3 {[%clk 0:01:47]}  Nc6 {[%clk 0:02:19]} 20. Kh1 {[%clk 0:01:40]}  bxc3 {[%clk 0:02:17]} 21. bxc3 {[%clk 0:01:39]}  Bxc3 {[%clk 0:02:18]} 22. Rb1 {[%clk 0:01:39]}  Be5 {[%clk 0:02:18]} 23. Qg4 {[%clk 0:01:26]}  Nb4 {[%clk 0:02:07]} 24. a3 {[%clk 0:01:15]}  Nc2 {[%clk 0:01:59]} 25. Bb2 {[%clk 0:01:07]}  Bxb2 {[%clk 0:01:51]} 26. Rxb2 {[%clk 0:01:05]}  Ne3 {[%clk 0:01:51]} 27. Qf3 {[%clk 0:00:58]}  Nxf1 {[%clk 0:01:50]} 28. Bxf1 {[%clk 0:00:58]}  Rb8 {[%clk 0:01:49]} 29. Rg2 {[%clk 0:00:57]}  Qh4 {[%clk 0:01:32]} 30. Rf2 {[%clk 0:00:49]}  Rb1 {[%clk 0:01:28]} 31. Kh2 {[%clk 0:00:48]}  Rfb8 {[%clk 0:01:21]} 32. Ng2 {[%clk 0:00:41]}  Qe7 {[%clk 0:01:17]} 33. Ne3 {[%clk 0:00:28]}  R1b2 {[%clk 0:01:16]} 34. Ne2 {[%clk 0:00:25]}  Bc6 {[%clk 0:01:10]} 35. Ng4 {[%clk 0:00:21]}  f5 {[%clk 0:00:59]} 36. Ne3 {[%clk 0:00:18]}  fxe4 {[%clk 0:00:57]} 37. dxe4 {[%clk 0:00:18]}  Rf8 {[%clk 0:00:55]} 38. Qg3 {[%clk 0:00:18]}  Rxf2+ {[%clk 0:00:54]} 39. Qxf2 {[%clk 0:00:19]}  Bxe4 {[%clk 0:00:53]} 40. Qf4 {[%clk 0:00:19]}  d5 {[%clk 0:00:52]} 41. Ng4 {[%clk 0:00:17]}  Bf5 {[%clk 0:00:46]} 42. Nh6+ {[%clk 0:00:17]}  Kg7 {[%clk 0:00:45]} 43. Qe5+ {[%clk 0:00:16]}  Kxh6 {[%clk 0:00:43]} 44. Qxb2 {[%clk 0:00:15]}  Qd6+ {[%clk 0:00:35]} 45. Kg2 {[%clk 0:00:15]}  Be4+ {[%clk 0:00:34]} 46. Kg1 {[%clk 0:00:15]}  d4 {[%clk 0:00:33]} 47. Qc1+ {[%clk 0:00:16]}  Kg7 {[%clk 0:00:32]} 48. Qf4 {[%clk 0:00:15]}  Qxf4 {[%clk 0:00:23]} 49. Nxf4 {[%clk 0:00:16]}  Kf6 {[%clk 0:00:24]} 50. Kf2 {[%clk 0:00:15]}  Ke5 {[%clk 0:00:21]} 51. Nd3+ {[%clk 0:00:15]}  Bxd3 {[%clk 0:00:21]} 52. Bxd3 {[%clk 0:00:16]}  Kd5 {[%clk 0:00:21]} 53. Ba6 {[%clk 0:00:16]}  c4 {[%clk 0:00:21]} 54. Bb7+ {[%clk 0:00:16]}  Kc5 {[%clk 0:00:21]} 55. Ke2 {[%clk 0:00:16]}  e5 {[%clk 0:00:21]} 56. Kd2 {[%clk 0:00:17]}  Kb6 {[%clk 0:00:18]} 57. Bd5 {[%clk 0:00:16]}  Kc5 {[%clk 0:00:17]} 58. Bg8 {[%clk 0:00:16]}  h6 {[%clk 0:00:17]} 59. h4 {[%clk 0:00:16]}  g5 {[%clk 0:00:16]} 60. hxg5 {[%clk 0:00:15]}  hxg5 {[%clk 0:00:17]} 61. Be6 {[%clk 0:00:15]}  Kd6 {[%clk 0:00:17]} 62. Bf5 {[%clk 0:00:15]}  Kc5 {[%clk 0:00:18]} 63. Kc2 {[%clk 0:00:15]}  Kd5 {[%clk 0:00:18]} 64. Bg6 {[%clk 0:00:15]}  d3+ {[%clk 0:00:18]} 65. Kc3 {[%clk 0:00:14]}  e4 {[%clk 0:00:18]} 66. Bf7+ {[%clk 0:00:15]}  Ke5 {[%clk 0:00:17]} 67. Bxc4 {[%clk 0:00:15]}  g4 {[%clk 0:00:17]} 68. Kd2 {[%clk 0:00:12]}  Kf4 {[%clk 0:00:17]} 69. Ke1 {[%clk 0:00:09]}  Ke3 {[%clk 0:00:17]} 70. Bb3 {[%clk 0:00:09]}  g3 {[%clk 0:00:14]} 71. Kf1 {[%clk 0:00:08]}  Kf3 {[%clk 0:00:13]} 72. Bd1+ {[%clk 0:00:08]}  Ke3 {[%clk 0:00:12]} 73. Kg2 {[%clk 0:00:08]}  Kd2 {[%clk 0:00:10]} 74. Ba4 {[%clk 0:00:09]}  e3 {[%clk 0:00:11]} 75. Kxg3 {[%clk 0:00:08]}  e2 {[%clk 0:00:11]} 76. Kf4 {[%clk 0:00:09]}  e1=Q {[%clk 0:00:10]} 77. Bb5 {[%clk 0:00:09]}  Qe3+ {[%clk 0:00:10]} 78. Kf5 {[%clk 0:00:09]}  Qc5+ {[%clk 0:00:09]} 0-1

[Event "January 9 Early 2024"]
[Site "https://www.chess.com"]
[Date "2024.01.11"]
[Round "7"]
[White "Starozhilov, Leonid"]
[Black "Drygalov, Sergey"]
[Result "0-1"]
[Board "265"]
[TimeControl "180+1"]
[WhiteFideId "14106752"]
[BlackFideId "24171743"]
[WhiteElo "2775"]
[BlackElo "2948"]
[WhiteTeam "UKR"]
[BlackTeam "RUS"]
[WhiteClock "0:00:05"]
[BlackClock "0:00:04"]

1. e4 {[%clk 0:03:00]}  c5 {[%clk 0:02:58]} 2. Nf3 {[%clk 0:03:01]}  d6 {[%clk 0:02:59]} 3. Bb5+ {[%clk 0:03:00]}  Nd7 {[%clk 0:02:59]} 4. O-O {[%clk 0:03:00]}  a6 {[%clk 0:02:58]} 5. Bxd7+ {[%clk 0:03:00]}  Bxd7 {[%clk 0:02:58]} 6. Re1 {[%clk 0:03:00]}  e6 {[%clk 0:02:52]} 7. c4 {[%clk 0:03:00]}  Nf6 {[%clk 0:02:52]} 8. Nc3 {[%clk 0:03:00]}  Be7 {[%clk 0:02:52]} 9. d4 {[%clk 0:03:00]}  cxd4 {[%clk 0:02:52]} 10. Qxd4 {[%clk 0:02:55]}  Rc8 {[%clk 0:02:50]} 11. b3 {[%clk 0:02:53]}  b5 {[%clk 0:02:41]} 12. cxb5 {[%clk 0:02:43]}  axb5 {[%clk 0:02:42]} 13. Bb2 {[%clk 0:02:14]}  e5 {[%clk 0:02:38]} 14. Qd3 {[%clk 0:01:45]}  Qb6 {[%clk 0:02:37]} 15. a4 {[%clk 0:01:16]}  bxa4 {[%clk 0:02:33]} 16. Nxa4 {[%clk 0:01:17]}  Qb7 {[%clk 0:02:30]} 17. Ba3 {[%clk 0:01:13]}  Bb5 {[%clk 0:02:22]} 18. Qe3 {[%clk 0:00:54]}  O-O {[%clk 0:02:22]} 19. h3 {[%clk 0:00:49]}  h6 {[%clk 0:02:13]} 20. Rad1 {[%clk 0:00:47]}  Rfd8 {[%clk 0:02:09]} 21. Nh4 {[%clk 0:00:39]}  Bf8 {[%clk 0:01:49]} 22. Nf5 {[%clk 0:00:37]}  Qa6 {[%clk 0:01:50]} 23. Qf3 {[%clk 0:00:31]}  Nh7 {[%clk 0:01:32]} 24. Qg3 {[%clk 0:00:26]}  g6 {[%clk 0:01:30]} 25. Bc1 {[%clk 0:00:26]}  h5 {[%clk 0:01:08]} 26. Ne3 {[%clk 0:00:15]}  Nf6 {[%clk 0:01:02]} 27. Qf3 {[%clk 0:00:14]}  Be7 {[%clk 0:01:01]} 28. Nd5 {[%clk 0:00:08]}  Nxd5 {[%clk 0:00:59]} 29. Rxd5 {[%clk 0:00:09]}  Bxa4 {[%clk 0:00:56]} 30. bxa4 {[%clk 0:00:09]}  Qxa4 {[%clk 0:00:56]} 31. Bh6 {[%clk 0:00:06]}  Rc4 {[%clk 0:00:49]} 32. g4 {[%clk 0:00:06]}  hxg4 {[%clk 0:00:48]} 33. hxg4 {[%clk 0:00:07]}  Rd4 {[%clk 0:00:46]} 34. Rxd4 {[%clk 0:00:04]}  Qxd4 {[%clk 0:00:45]} 35. Rd1 {[%clk 0:00:05]}  Qc4 {[%clk 0:00:44]} 36. Kg2 {[%clk 0:00:05]}  Rb8 {[%clk 0:00:42]} 37. g5 {[%clk 0:00:03]}  Rb2 {[%clk 0:00:33]} 38. Re1 {[%clk 0:00:03]}  d5 {[%clk 0:00:26]} 39. exd5 {[%clk 0:00:03]}  Bc5 {[%clk 0:00:27]} 40. Rxe5 {[%clk 0:00:02]}  Rxf2+ {[%clk 0:00:25]} 41. Qxf2 {[%clk 0:00:02]}  Bxf2 {[%clk 0:00:25]} 42. Kxf2 {[%clk 0:00:03]}  Qd4+ {[%clk 0:00:25]} 43. Re3 {[%clk 0:00:03]}  Qxd5 {[%clk 0:00:25]} 44. Kg3 {[%clk 0:00:03]}  Qd6+ {[%clk 0:00:22]} 45. Kf3 {[%clk 0:00:03]}  Qd4 {[%clk 0:00:20]} 46. Re4 {[%clk 0:00:03]}  Qd3+ {[%clk 0:00:20]} 47. Kf4 {[%clk 0:00:04]}  Qf1+ {[%clk 0:00:20]} 48. Ke3 {[%clk 0:00:03]}  Qf5 {[%clk 0:00:20]} 49. Rf4 {[%clk 0:00:02]}  Qe5+ {[%clk 0:00:20]} 50. Kf3 {[%clk 0:00:02]}  Qd5+ {[%clk 0:00:20]} 51. Kg3 {[%clk 0:00:03]}  Qh1 {[%clk 0:00:20]} 52. Rf6 {[%clk 0:00:03]}  Qg1+ {[%clk 0:00:19]} 53. Kf3 {[%clk 0:00:03]}  Qc1 {[%clk 0:00:19]} 54. Kg3 {[%clk 0:00:03]}  Qe1+ {[%clk 0:00:18]} 55. Kf3 {[%clk 0:00:04]}  Qe5 {[%clk 0:00:18]} 56. Kg2 {[%clk 0:00:04]}  Qe4+ {[%clk 0:00:18]} 57. Kf2 {[%clk 0:00:05]}  Qg4 {[%clk 0:00:18]} 58. Kf1 {[%clk 0:00:05]}  Qd1+ {[%clk 0:00:18]} 59. Kf2 {[%clk 0:00:05]}  Qd3 {[%clk 0:00:18]} 60. Kg2 {[%clk 0:00:05]}  Qe3 {[%clk 0:00:18]} 61. Kf1 {[%clk 0:00:05]}  Qd2 {[%clk 0:00:18]} 62. Kg1 {[%clk 0:00:05]}  Qe2 {[%clk 0:00:19]} 63. Kh1 {[%clk 0:00:05]}  Qg4 {[%clk 0:00:11]} 64. Kh2 {[%clk 0:00:05]}  Qd4 {[%clk 0:00:11]} 65. Kg3 {[%clk 0:00:05]}  Qe4 {[%clk 0:00:11]} 66. Kf2 {[%clk 0:00:05]}  Qd3 {[%clk 0:00:12]} 67. Kg2 {[%clk 0:00:05]}  Qe3 {[%clk 0:00:12]} 68. Kh2 {[%clk 0:00:05]}  Qe1 {[%clk 0:00:11]} 69. Kg2 {[%clk 0:00:06]}  Qd1 {[%clk 0:00:11]} 70. Kg3 {[%clk 0:00:06]}  Qg1+ {[%clk 0:00:11]} 71. Kf4 {[%clk 0:00:06]}  Qg2 {[%clk 0:00:11]} 72. Ke3 {[%clk 0:00:06]}  Qg4 {[%clk 0:00:10]} 73. Kf2 {[%clk 0:00:06]}  Qh3 {[%clk 0:00:11]} 74. Ke2 {[%clk 0:00:06]}  Qg3 {[%clk 0:00:11]} 75. Kf1 {[%clk 0:00:06]}  Qh2 {[%clk 0:00:10]} 76. Ke1 {[%clk 0:00:06]}  Qg2 {[%clk 0:00:11]} 77. Kd1 {[%clk 0:00:05]}  Qe4 {[%clk 0:00:11]} 78. Kd2 {[%clk 0:00:05]}  Qe5 {[%clk 0:00:10]} 79. Kd3 {[%clk 0:00:06]}  Qe1 {[%clk 0:00:10]} 80. Kd4 {[%clk 0:00:06]}  Qe2 {[%clk 0:00:11]} 81. Kd5 {[%clk 0:00:05]}  Qe3 {[%clk 0:00:11]} 82. Kd6 {[%clk 0:00:05]}  Qe4 {[%clk 0:00:12]} 83. Kd7 {[%clk 0:00:05]}  Qe5 {[%clk 0:00:12]} 84. Kd8 {[%clk 0:00:03]}  Qd5+ {[%clk 0:00:12]} 85. Kc7 {[%clk 0:00:02]}  Qb5 {[%clk 0:00:12]} 86. Kd6 {[%clk 0:00:03]}  Qa5 {[%clk 0:00:12]} 87. Kc6 {[%clk 0:00:03]}  Qe5 {[%clk 0:00:12]} 88. Kd7 {[%clk 0:00:03]}  Qc5 {[%clk 0:00:11]} 89. Kd8 {[%clk 0:00:03]}  Qa7 {[%clk 0:00:10]} 90. Kc8 {[%clk 0:00:02]}  Qe7 {[%clk 0:00:10]} 91. Kb8 {[%clk 0:00:02]}  Qd7 {[%clk 0:00:11]} 92. Rb6 {[%clk 0:00:01]}  f5 {[%clk 0:00:11]} 93. gxf6 {[%clk 0:00:02]}  Qd5 {[%clk 0:00:07]} 94. f7+ {[%clk 0:00:02]}  Kxf7 {[%clk 0:00:07]} 95. Ka7 {[%clk 0:00:02]}  g5 {[%clk 0:00:06]} 96. Rb7+ {[%clk 0:00:01]}  Kg6 {[%clk 0:00:07]} 97. Rb6+ {[%clk 0:00:02]}  Kh5 {[%clk 0:00:07]} 98. Bf8 {[%clk 0:00:03]}  g4 {[%clk 0:00:06]} 99. Bd6 {[%clk 0:00:03]}  Qa2+ {[%clk 0:00:05]} 100. Kb7 {[%clk 0:00:03]}  g3 {[%clk 0:00:04]} 101. Kc6 {[%clk 0:00:04]}  g2 {[%clk 0:00:03]} 102. Bc5 {[%clk 0:00:03]}  Qc2 {[%clk 0:00:01]} 103. Rb5 {[%clk 0:00:04]}  g1=Q {[%clk 0:00:02]} 104. Kb6 {[%clk 0:00:04]}  Qgg6+ {[%clk 0:00:02]} 105. Ka5 {[%clk 0:00:04]}  Kg4 {[%clk 0:00:03]} 106. Bb4 {[%clk 0:00:04]}  Kf3 {[%clk 0:00:04]} 107. Rb6 {[%clk 0:00:05]}  Qxb6+ {[%clk 0:00:04]} 108. Kxb6 {[%clk 0:00:05]}  Ke4 {[%clk 0:00:04]} 0-1